bitfinex-derivatives/quotes_BTCF0:USTF0_20251110
["timestamp","ask_amount","ask_price","bid_price","bid_amount"]
[1762782646951,0.21762419,106540.0,106530.0,0.05707267]
[1762782647155,0.45090177,106540.0,106530.0,0.05707267]
[1762782647356,0.42960082,106540.0,106530.0,0.05707267]
[1762782648551,0.10464082,106540.0,106530.0,0.05707267]
[1762782648865,0.09588045,106540.0,106530.0,0.05707267]
[1762782649064,0.09791045,106540.0,106530.0,0.05707267]
[1762782650165,0.09994045,106540.0,106530.0,0.05707267]
[1762782652460,0.09994045,106540.0,106530.0,0.05357267]
[1762782656970,0.19162287,106540.0,106530.0,0.05357267]
[1762782657868,0.09994045,106540.0,106530.0,0.05357267]
[1762782659065,0.09628163,106540.0,106530.0,0.05523149]
[1762782660174,0.09628163,106540.0,106530.0,0.12240601]
[1762782660666,0.09628163,106540.0,106530.0,0.05523149]
[1762782661573,0.18796405,106540.0,106530.0,0.05523149]
[1762782661774,0.09628163,106540.0,106530.0,0.05523149]
[1762782662464,0.18796405,106540.0,106530.0,0.05523149]
[1762782663174,0.09628163,106540.0,106530.0,0.05523149]
[1762782663777,0.18796405,106540.0,106530.0,0.05523149]
[1762782664171,0.18796405,106540.0,106530.0,0.00165882]
[1762782664371,0.18796405,106540.0,106530.0,0.02448882]
[1762782664574,0.18796405,106540.0,106530.0,0.05962882]
[1762782665978,0.18796405,106540.0,106530.0,0.05612882]
[1762782667477,0.09628163,106540.0,106530.0,0.05612882]
[1762782669577,0.09425163,106540.0,106530.0,0.05612882]
[1762782669881,0.10088163,106540.0,106530.0,0.05612882]
[1762782671269,0.09425163,106540.0,106530.0,0.21719694]
[1762782671475,0.10088163,106540.0,106530.0,0.21719694]
[1762782672379,0.10088163,106540.0,106530.0,0.12330334]
[1762782673280,0.10051045,106540.0,106530.0,0.12384255]
[1762782673474,0.10511045,106540.0,106530.0,0.12384255]
[1762782673675,0.10511045,106540.0,106530.0,0.21773615]
[1762782674487,0.00219803,106540.0,106530.0,0.15056163]
[1762782674684,0.10308045,106540.0,106530.0,0.15056163]
[1762782677878,0.10308045,106540.0,106530.0,0.21773615]
[1762782679280,0.10308045,106540.0,106530.0,0.12384255]
[1762782680189,0.10308045,106540.0,106530.0,0.12034255]
[1762782680975,0.19473443,106540.0,106530.0,0.12034255]
[1762782682983,0.19473443,106540.0,106530.0,0.21423615]
[1762782687382,0.19107695,106540.0,106530.0,0.21423615]
[1762782687788,0.19107695,106540.0,106530.0,0.12034255]
[1762782689390,0.19107695,106540.0,106530.0,0.21423615]
[1762782689989,0.19107695,106540.0,106530.0,0.12034255]
[1762782695591,0.19107695,106540.0,106530.0,0.11684255]
[1762782700187,0.28274515,106540.0,106530.0,0.11684255]
[1762782700594,0.28274515,106540.0,106530.0,0.06771373]
[1762782701101,0.28274515,106540.0,106530.0,0.12507373]
[1762782703097,0.28274515,106540.0,106530.0,0.05789921]
[1762782703298,0.27908834,106540.0,106530.0,0.05789921]
[1762782703499,0.28557834,106540.0,106530.0,0.12507373]
[1762782704699,0.28557834,106540.0,106530.0,0.05789921]
[1762782706490,0.30679152,106540.0,106530.0,0.05789921]
[1762782707804,0.3067906,106540.0,106530.0,0.05789921]
[1762782708297,0.3067906,106540.0,106520.0,0.07741561]
[1762782708504,0.2879846,106530.0,106520.0,0.12146561]
[1762782708707,0.1963164,106530.0,106520.0,0.05648912]
[1762782709704,0.1963164,106530.0,106520.0,0.05748912]
[1762782710297,0.1963164,106530.0,106520.0,0.05498912]
[1762782711204,0.1963164,106530.0,106520.0,0.12216364]
[1762782713209,0.1116482,106540.0,106530.0,0.05746]
[1762782713395,0.2033164,106540.0,106530.0,0.12683255]
[1762782715310,0.2043164,106540.0,106530.0,0.12683255]
[1762782715511,0.2959846,106540.0,106530.0,0.12683255]
[1762782715710,0.2043164,106540.0,106530.0,0.12683255]
[1762782716306,0.2959846,106540.0,106530.0,0.05965803]
[1762782717116,0.2959846,106540.0,106530.0,0.04784803]
[1762782717807,0.2959846,106540.0,106530.0,0.06105803]
[1762782718012,0.2959846,106540.0,106530.0,0.00219803]
[1762782718207,0.29232846,106540.0,106530.0,0.00219803]
[1762782718609,0.29232846,106540.0,106530.0,0.06105803]
[1762782720928,0.20066026,106540.0,106530.0,0.06105803]
[1762782724114,0.29232846,106540.0,106530.0,0.06105803]
[1762782724528,0.01732386,106540.0,106530.0,0.06105803]
[1762782724822,0.20066026,106540.0,106530.0,0.06105803]
[1762782725223,0.20066026,106540.0,106530.0,0.12823255]
[1762782725625,0.20285829,106540.0,106530.0,0.12527176]
[1762782726622,0.20285829,106540.0,106530.0,0.05809724]
[1762782728532,0.01952189,106540.0,106530.0,0.05809724]
[1762782728733,0.20285829,106540.0,106530.0,0.15199084]
[1762782729031,0.20285829,106540.0,106530.0,0.05809724]
[1762782731335,0.20285829,106540.0,106530.0,0.12527176]
[1762782732534,0.19920282,106540.0,106530.0,0.12527176]
[1762782734133,0.19920282,106540.0,106530.0,0.21916536]
[1762782735135,0.01586642,106540.0,106530.0,0.21916536]
[1762782735333,0.18653443,106540.0,106530.0,0.21916536]
[1762782735535,0.09486623,106540.0,106530.0,0.31083356]
[1762782735837,0.00319803,106540.0,106530.0,0.32699987]
[1762782736326,0.09180929,106550.0,106540.0,0.1527448]
[1762782736526,0.09180929,106550.0,106540.0,0.32149059]
[1762782736730,0.09180929,106550.0,106540.0,0.40483142]
[1762782737635,0.09380929,106550.0,106540.0,0.40483142]
[1762782737829,0.09380929,106550.0,106540.0,0.31316322]
[1762782737830,0.09600732,106550.0,106540.0,0.31316322]
[1762782738235,0.09600732,106550.0,106540.0,0.21927842]
[1762782738535,0.09700732,106550.0,106540.0,0.31316322]
[1762782739226,0.09700732,106550.0,106540.0,0.21927842]
[1762782739536,0.10696732,106550.0,106540.0,0.13243759]
[1762782740137,0.10198732,106550.0,106540.0,0.29376801]
[1762782740443,0.11046732,106550.0,106540.0,0.29376801]
[1762782740833,0.10198732,106550.0,106540.0,0.29376801]
[1762782742143,0.09700732,106550.0,106540.0,0.29376801]
[1762782742342,0.09700732,106550.0,106540.0,0.38543621]
[1762782742547,0.0916682,106560.0,106550.0,0.151166]
[1762782742843,0.1054266,106570.0,106560.0,0.05729]
[1762782743045,0.1192466,106570.0,106560.0,0.15335523]
[1762782743448,0.1192466,106570.0,106560.0,0.05948803]
[1762782743744,0.1192466,106570.0,106560.0,0.15335523]
[1762782744646,0.1212466,106570.0,106560.0,0.05948803]
[1762782745237,0.1212466,106570.0,106560.0,0.15335523]
[1762782745437,0.1222466,106570.0,106560.0,0.15335523]
[1762782746244,0.1222466,106570.0,106560.0,0.05948803]
[1762782746638,0.1222466,106570.0,106560.0,0.15335523]
[1762782746942,0.1185918,106570.0,106560.0,0.15335523]
[1762782749537,0.1185918,106570.0,106560.0,0.05948803]
[1762782750139,0.1185918,106570.0,106560.0,0.15335523]
[1762782751038,0.1185918,106570.0,106560.0,0.05948803]
[1762782751245,0.1185918,106570.0,106560.0,0.15335523]
[1762782752245,0.1185918,106570.0,106560.0,0.05948803]
[1762782754239,0.1185918,106570.0,106560.0,0.05598803]
[1762782754745,0.1185918,106570.0,106560.0,0.14985523]
[1762782755246,0.1185918,106570.0,106560.0,0.05598803]
[1762782756644,0.1185918,106570.0,106560.0,0.14985523]
[1762782756847,0.1185918,106570.0,106560.0,0.05598803]
[1762782758353,0.1185918,106570.0,106560.0,0.14985523]
[1762782758752,0.1185918,106570.0,106560.0,0.05598803]
[1762782759743,0.1222466,106570.0,106560.0,0.14985523]
[1762782760452,0.0946066,106570.0,106560.0,0.14985523]
[1762782760644,0.1119266,106570.0,106560.0,0.21728772]
[1762782760844,0.1292466,106570.0,106560.0,0.21728772]
[1762782761655,0.12559246,106570.0,106560.0,0.21728772]
[1762782763554,0.09095246,106570.0,106560.0,0.21728772]
[1762782763849,0.12559246,106570.0,106560.0,0.12342052]
[1762782764057,0.12559246,106570.0,106560.0,0.21728772]
[1762782764257,13.18844109,106580.0,106570.0,0.05729]
[1762782764447,13.28004769,106580.0,106570.0,0.05948803]
[1762782765461,13.28204769,106580.0,106570.0,0.05948803]
[1762782765754,13.28404769,106580.0,106570.0,0.05948803]
[1762782767057,13.28404769,106580.0,106570.0,0.15334643]
[1762782767558,13.28404769,106580.0,106570.0,0.05948803]
[1762782768957,13.28754769,106580.0,106570.0,0.04326803]
[1762782769461,13.28404769,106580.0,106570.0,0.05603803]
[1762782770859,13.28404769,106580.0,106570.0,0.12347052]
[1762782771161,13.28404769,106580.0,106570.0,0.21732892]
[1762782771162,13.19244109,106580.0,106570.0,0.21732892]
[1762782771349,13.28404769,106580.0,106570.0,0.21732892]
[1762782774557,13.19244109,106580.0,106570.0,0.21732892]
[1762782774760,13.28404769,106580.0,106570.0,0.12347052]
[1762782775764,13.19244109,106580.0,106570.0,0.12347052]
[1762782775959,13.28404769,106580.0,106570.0,0.12347052]
[1762782776650,13.28039422,106580.0,106570.0,0.12347052]
[1762782777761,13.28773422,106580.0,106570.0,0.11070052]
[1762782779366,13.28773422,106580.0,106570.0,0.06963052]
[1762782779868,13.28773422,106580.0,106570.0,0.09158052]
[1762782780258,13.28773422,106580.0,106570.0,0.11362052]
[1762782780866,13.28773422,106580.0,106570.0,0.09158052]
[1762782781364,13.28773422,106580.0,106570.0,0.11362052]
[1762782781562,13.28773422,106580.0,106570.0,0.06743249]
[1762782781880,0.04728,106570.0,106560.0,0.06743249]
[1762782782167,0.04598,106560.0,106550.0,0.02209109]
[1762782782371,0.2291932,106560.0,106550.0,0.11156672]
[1762782784263,0.2248532,106560.0,106550.0,0.12664475]
[1762782784463,0.1332466,106560.0,106550.0,0.22052075]
[1762782784963,0.1332466,106560.0,106550.0,0.21702075]
[1762782785163,0.1332466,106560.0,106550.0,0.12314475]
[1762782786764,0.2248532,106560.0,106550.0,0.12314475]
[1762782786959,0.2291932,106560.0,106550.0,0.08822475]
[1762782787166,0.2291932,106560.0,106550.0,0.06743563]
[1762782787560,0.04652,106550.0,106540.0,0.14955727]
[1762782787761,0.4625266,106550.0,106540.0,0.06621644]
[1762782787964,0.5541332,106550.0,106540.0,0.00014109]
[1762782788167,0.4625266,106550.0,106540.0,0.00014109]
[1762782788766,0.4625266,106550.0,106540.0,0.00114109]
[1762782789170,0.1347666,106550.0,106540.0,0.06020912]
[1762782789371,0.36770109,106560.0,106550.0,0.150746]
[1762782789571,0.13490769,106560.0,106550.0,0.15294403]
[1762782790371,0.22651429,106560.0,106550.0,0.05906803]
[1762782790566,0.23337429,106560.0,106550.0,0.05906803]
[1762782790968,0.23337429,106560.0,106550.0,0.04618803]
[1762782791169,0.04316,106550.0,106540.0,0.05801109]
[1762782791371,0.1347666,106550.0,106540.0,0.06020912]
[1762782792377,0.1311138,106550.0,106540.0,0.06020912]
[1762782793065,0.1311138,106550.0,106540.0,0.02528912]
[1762782794174,0.1311138,106550.0,106540.0,0.00333912]
[1762782794569,0.1311138,106550.0,106540.0,0.00433912]
[1762782794773,0.4555138,106550.0,106540.0,0.00214109]
[1762782797177,0.5471204,106550.0,106540.0,0.00214109]
[1762782797878,0.4555138,106550.0,106540.0,0.00214109]
[1762782798967,0.03676,106530.0,106520.0,0.12512882]
[1762782799281,0.2199732,106530.0,106520.0,0.06002803]
[1762782799472,0.2199732,106530.0,106520.0,0.05652803]
[1762782801076,0.2199732,106530.0,106520.0,0.05952803]
[1762782801572,0.2199732,106530.0,106520.0,0.05014803]
[1762782801776,0.2256132,106530.0,106520.0,0.05414803]
[1762782802080,0.2256132,106530.0,106520.0,0.06803803]
[1762782802481,0.03676,106530.0,106520.0,0.06803803]
[1762782802684,0.1283666,106530.0,106520.0,0.06803803]
[1762782803381,0.2199732,106530.0,106520.0,0.06803803]
[1762782804588,0.2199732,106530.0,106520.0,0.16194043]
[1762782804777,0.2199732,106530.0,106520.0,0.06803803]
[1762782804980,0.22014206,106530.0,106520.0,0.06803803]
[1762782806181,0.21648993,106530.0,106520.0,0.06803803]
[1762782807285,0.21648993,106530.0,106520.0,0.03087803]
[1762782807485,0.21648993,106530.0,106520.0,0.00919803]
[1762782807690,0.21648993,106530.0,106520.0,0.03087803]
[1762782808589,0.21648993,106530.0,106520.0,0.05414803]
[1762782809087,0.63258096,106530.0,106520.0,0.007]
[1762782809291,0.0453,106520.0,106510.0,0.01102064]
[1762782809491,0.32037309,106520.0,106510.0,0.05816867]
[1762782809693,0.22868206,106520.0,106510.0,0.07205867]
[1762782810790,0.22084206,106520.0,106510.0,0.07205867]
[1762782811287,0.22284206,106520.0,106510.0,0.07205867]
[1762782811482,0.03946,106520.0,106510.0,0.07205867]
[1762782811791,0.22284206,106520.0,106510.0,0.16596987]
[1762782811981,0.22084206,106520.0,106510.0,0.07205867]
[1762782812180,0.22284206,106520.0,106510.0,0.07205867]
[1762782812392,0.22284206,106520.0,106510.0,0.16596987]
[1762782813197,0.22284206,106520.0,106510.0,0.16246987]
[1762782815290,0.18638206,106520.0,106510.0,0.16246987]
[1762782815485,0.20461206,106520.0,106510.0,0.16246987]
[1762782815687,0.22284206,106520.0,106510.0,0.16246987]
[1762782818093,0.22284206,106520.0,106510.0,0.06855867]
[1762782820492,0.22773206,106520.0,106510.0,0.00971867]
[1762782820688,0.22184206,106520.0,106510.0,0.06855867]
[1762782820995,0.22184206,106520.0,106510.0,0.16246987]
[1762782822299,0.22184206,106520.0,106510.0,0.22976869]
[1762782823197,0.09369103,106520.0,106510.0,0.32145972]
[1762782823499,0.09369103,106520.0,106510.0,0.22976869]
[1762782823696,0.20361206,106520.0,106510.0,0.22976869]
[1762782823895,0.20361206,106520.0,106510.0,0.16246987]
[1762782824100,0.20361206,106520.0,106510.0,0.22993998]
[1762782824297,0.22184206,106520.0,106510.0,0.16246987]
[1762782824799,0.22184206,106520.0,106510.0,0.2458107]
[1762782824999,0.22184206,106520.0,106510.0,0.22996147]
[1762782825199,0.22184206,106520.0,106510.0,0.16246987]
[1762782825394,0.22184206,106520.0,106510.0,0.06855867]
[1762782825596,0.22184206,106520.0,106510.0,0.16246987]
[1762782827001,0.22184206,106520.0,106510.0,0.15896987]
[1762782828000,0.22184206,106520.0,106510.0,0.22646589]
[1762782830398,0.03846,106520.0,106510.0,0.13255469]
[1762782830606,0.22184206,106520.0,106510.0,0.22646589]
[1762782834405,0.21819126,106520.0,106510.0,0.22646589]
[1762782836006,0.21819126,106520.0,106510.0,0.2265261]
[1762782836304,0.21819126,106520.0,106510.0,0.22653119]
[1762782837211,0.09169103,106520.0,106510.0,0.22653119]
[1762782837406,0.10827103,106520.0,106510.0,0.22653119]
[1762782837712,0.19996206,106520.0,106510.0,0.22653119]
[1762782839299,0.01658,106520.0,106510.0,0.22653119]
[1762782839504,0.19996206,106520.0,106510.0,0.22653119]
[1762782839910,0.44935212,106540.0,106530.0,0.05818]
[1762782840109,0.65410737,106540.0,106530.0,0.06037803]
[1762782841103,0.65810737,106540.0,106530.0,0.06037803]
[1762782841302,0.65810737,106540.0,106520.0,0.05687803]
[1762782841303,0.03316,106530.0,106520.0,0.05687803]
[1762782841510,0.21874009,106530.0,106520.0,0.05741724]
[1762782841711,0.21874009,106530.0,106520.0,0.12497856]
[1762782843316,0.22174009,106530.0,106520.0,0.12497856]
[1762782843609,0.22474009,106530.0,106520.0,0.12497856]
[1762782845910,0.22474009,106530.0,106520.0,0.11295053]
[1762782846216,0.22474009,106530.0,106520.0,0.00053921]
[1762782846404,0.31643112,106530.0,106520.0,0.00053921]
[1762782846817,0.22474009,106530.0,106520.0,0.00053921]
[1762782849211,0.22108996,106530.0,106520.0,0.00053921]
[1762782850512,0.032,106520.0,106510.0,0.07158196]
[1762782850708,0.30927112,106520.0,106510.0,0.07212117]
[1762782851108,0.30927112,106520.0,106510.0,0.09424117]
[1762782851416,0.30927112,106520.0,106510.0,0.11697117]
[1762782851614,0.30927112,106520.0,106510.0,0.09424117]
[1762782851914,0.30927112,106520.0,106510.0,0.07212117]
[1762782852313,0.63359112,106520.0,106510.0,0.07212117]
[1762782852514,0.63359112,106520.0,106510.0,0.09424117]
[1762782852716,0.63459112,106520.0,106510.0,0.07212117]
[1762782853212,0.63659112,106520.0,106510.0,0.07212117]
[1762782853418,0.63659112,106520.0,106510.0,0.00455985]
[1762782855120,0.63659112,106520.0,106510.0,0.02667985]
[1762782856015,0.63659112,106520.0,106510.0,0.0006803]
[1762782856216,0.63659112,106520.0,106510.0,0.00014109]
[1762782856419,0.02846,106510.0,106500.0,0.10905241]
[1762782856620,0.12234906,106510.0,106500.0,0.10959162]
[1762782857121,0.21754009,106510.0,106500.0,0.06474162]
[1762782857722,0.21754009,106510.0,106500.0,0.00053921]
[1762782857915,0.31023112,106510.0,106500.0,0.00053921]
[1762782858412,0.21854009,106510.0,106500.0,0.00053921]
[1762782858608,0.31023112,106510.0,106500.0,0.00053921]
[1762782860218,0.21854009,106510.0,106500.0,0.00053921]
[1762782860425,0.02846,106500.0,106490.0,0.06777205]
[1762782860616,0.63005112,106500.0,106490.0,0.06831126]
[1762782860924,0.53836009,106500.0,106490.0,0.06831126]
[1762782861218,0.63005112,106500.0,106490.0,0.06831126]
[1762782861425,0.21404009,106500.0,106490.0,0.06831126]
[1762782862016,0.21404009,106500.0,106490.0,0.06931126]
[1762782862423,0.30573112,106500.0,106490.0,0.06931126]
[1762782862728,0.21404009,106500.0,106490.0,0.06931126]
[1762782863019,0.21404009,106500.0,106490.0,0.07031126]
[1762782863225,0.21039062,106500.0,106490.0,0.07031126]
[1762782863726,0.30208165,106500.0,106490.0,0.07031126]
[1762782864625,0.30562165,106500.0,106490.0,0.03396126]
[1762782864815,0.12230958,106500.0,106490.0,0.01293126]
[1762782865022,0.2140706,106500.0,106490.0,0.01293126]
[1762782865631,0.2140706,106500.0,106490.0,0.00279783]
[1762782867030,0.02116,106490.0,106480.0,0.07779653]
[1762782867235,0.53690795,106490.0,106480.0,0.01090567]
[1762782867431,0.53340795,106490.0,106480.0,0.06828567]
[1762782868342,0.53349695,106490.0,106480.0,0.06828567]
[1762782868642,0.20913695,106490.0,106480.0,0.06828567]
[1762782869144,0.21013695,106490.0,106480.0,0.06828567]
[1762782870640,0.20648815,106490.0,106480.0,0.03193567]
[1762782870840,0.20648815,106490.0,106480.0,0.05503567]
[1762782871040,0.20648815,106490.0,106480.0,0.01090567]
[1762782871240,0.29824917,106490.0,106480.0,0.00053921]
[1762782873245,0.1077977,106480.0,106470.0,0.06792653]
[1762782873446,0.61787777,106480.0,106470.0,0.06846574]
[1762782874448,0.61787777,106480.0,106470.0,0.06946574]
[1762782875244,0.61787777,106480.0,106470.0,0.03303574]
[1762782875450,0.61787777,106480.0,106470.0,0.01200574]
[1762782875843,0.61787777,106480.0,106470.0,0.06938574]
[1762782878250,0.61787777,106480.0,106470.0,0.06588574]
[1762782883350,0.61787777,106480.0,106470.0,0.05263574]
[1762782883650,0.61787777,106480.0,106470.0,0.06588574]
[1762782884958,0.61422963,106480.0,106470.0,0.06588574]
[1762782886759,0.52246861,106480.0,106470.0,0.06588574]
[1762782886965,0.19117861,106480.0,106470.0,0.06588574]
[1762782887148,0.19446861,106480.0,106470.0,0.06588574]
[1762782887348,0.19446861,106480.0,106470.0,0.15983224]
[1762782890260,0.09395905,106480.0,106470.0,0.15983224]
[1762782890854,0.09395905,106480.0,106470.0,0.22726231]
[1762782891062,0.09724905,106480.0,106470.0,0.22726231]
[1762782891364,0.19447675,106480.0,106470.0,0.22726231]
[1762782891665,0.19447675,106480.0,106470.0,0.13331581]
[1762782892074,0.19447675,106480.0,106470.0,0.12981581]
[1762782892654,0.19447675,106480.0,106470.0,0.22376231]
[1762782894562,0.1005979,106490.0,106480.0,0.1528177]
[1762782894763,0.19455695,106490.0,106480.0,0.15335691]
[1762782894959,0.19455695,106490.0,106480.0,0.05941921]
[1762782895665,0.19455695,106490.0,106480.0,0.15335691]
[1762782896167,0.19555695,106490.0,106480.0,0.15335691]
[1762782898969,0.19190948,106490.0,106480.0,0.15335691]
[1762782899668,0.19190948,106490.0,106480.0,0.22078698]
[1762782901067,0.19190948,106490.0,106480.0,0.15335691]
[1762782901267,0.19190948,106490.0,106480.0,0.05941921]
[1762782903269,0.19190948,106490.0,106480.0,0.15335691]
[1762782905072,0.19190948,106490.0,106480.0,0.22078698]
[1762782907374,0.18826267,106490.0,106480.0,0.22078698]
[1762782908969,0.18497267,106490.0,106480.0,0.15335691]
[1762782909170,0.18826267,106490.0,106480.0,0.22078698]
[1762782909669,0.18826267,106490.0,106480.0,0.23669774]
[1762782910263,0.18497267,106490.0,106480.0,0.23669774]
[1762782910461,0.18497267,106490.0,106480.0,0.15335691]
[1762782910764,0.18168267,106490.0,106480.0,0.22088177]
[1762782910963,0.001089,106490.0,106480.0,0.54740279]
[1762782911168,0.001089,106490.0,106480.0,0.47987793]
[1762782911474,0.001089,106490.0,106480.0,0.56321876]
[1762782911672,0.001089,106490.0,106480.0,0.24511793]
[1762782911869,0.001089,106490.0,106480.0,0.47987793]
[1762782912071,0.001089,106490.0,106480.0,0.3617951]
[1762782912472,8.9e-05,106490.0,106480.0,0.5662434]
[1762782912672,8.9e-05,106490.0,106480.0,0.3324834]
[1762782912873,0.00014109,106500.0,106490.0,0.1521988]
[1762782913074,0.09190211,106500.0,106490.0,0.15273801]
[1762782913280,0.09190211,106500.0,106490.0,0.23710348]
[1762782913567,0.09190211,106500.0,106490.0,0.15273801]
[1762782913970,0.0919531,106500.0,106490.0,0.15273801]
[1762782914372,0.0919531,106500.0,106490.0,0.23710348]
[1762782914867,0.0919531,106500.0,106490.0,0.23460348]
[1762782915465,0.0919531,106500.0,106490.0,0.15023801]
[1762782916775,0.09415113,106500.0,106490.0,0.23460348]
[1762782917273,0.09415113,106500.0,106490.0,0.30786481]
[1762782920968,0.09415113,106500.0,106490.0,0.37532323]
[1762782921173,0.09415113,106500.0,106490.0,0.29095776]
[1762782921977,0.08830696,106500.0,106490.0,0.29095776]
[1762782926884,0.18348573,106500.0,106490.0,0.29095776]
[1762782928479,0.17984025,106500.0,106490.0,0.30786481]
[1762782928677,0.18203828,106500.0,106490.0,0.30786481]
[1762782930884,0.18532828,106500.0,106490.0,0.30786481]
[1762782931076,0.18203828,106500.0,106490.0,0.30786481]
[1762782932586,0.00014109,106510.0,106500.0,0.1527]
[1762782932780,0.00014109,106510.0,106500.0,0.56404205]
[1762782932984,0.00014109,106510.0,106500.0,0.65575942]
[1762782933188,0.00014109,106510.0,106500.0,0.33667395]
[1762782933483,0.00014109,106510.0,106500.0,0.6557087]
[1762782933688,0.00658,106530.0,106520.0,0.1526824]
[1762782933888,0.1004954,106530.0,106520.0,0.22066979]
[1762782934886,0.1064954,106530.0,106520.0,0.22066979]
[1762782935886,0.1064954,106530.0,106520.0,0.21716979]
[1762782942489,0.1032054,106530.0,106520.0,0.21716979]
[1762782942890,0.1099954,106530.0,106520.0,0.21716979]
[1762782943585,0.10635059,106530.0,106520.0,0.21716979]
[1762782943792,0.10985059,106530.0,106520.0,0.21716979]
[1762782945394,0.20156796,106530.0,106520.0,0.14972161]
[1762782945991,0.20156796,106530.0,106520.0,0.21716979]
[1762782947686,0.20156796,106530.0,106520.0,0.12326739]
[1762782949492,0.20192277,106530.0,106520.0,0.21716979]
[1762782949792,0.01848803,106530.0,106520.0,0.21716979]
[1762782949992,0.1102054,106530.0,106520.0,0.21716979]
[1762782950790,0.1102054,106530.0,106520.0,0.21366979]
[1762782952695,0.1102054,106530.0,106520.0,0.14622161]
[1762782954495,0.01848803,106530.0,106520.0,0.14622161]
[1762782954797,0.1102054,106530.0,106520.0,0.14622161]
[1762782954996,0.1102054,106530.0,106520.0,0.21366979]
[1762782957097,0.1102054,106530.0,106520.0,0.11976739]
[1762782957301,0.20192277,106530.0,106520.0,0.21366979]
[1762782957897,0.19827862,106530.0,106520.0,0.21366979]
[1762782958504,0.01484388,106530.0,106520.0,0.21366979]
[1762782958692,0.10656125,106530.0,106520.0,0.21366979]
[1762782961108,0.01484388,106530.0,106520.0,0.32965635]
[1762782961308,0.01484388,106530.0,106520.0,0.3222492]
[1762782961309,0.10656125,106530.0,106520.0,0.3222492]
[1762782961805,0.10656125,106530.0,106520.0,0.23793898]
[1762782961996,0.10500737,106530.0,106520.0,0.23793898]
[1762782962196,0.10600737,106530.0,106520.0,0.32234999]
[1762782962393,0.10300737,106530.0,106520.0,0.23793898]
[1762782962604,0.10500737,106530.0,106520.0,0.23793898]
[1762782963205,0.10500737,106530.0,106520.0,0.3223673]
[1762782963706,0.10500737,106530.0,106520.0,0.23793898]
[1762782964101,0.10500737,106530.0,106520.0,0.35461615]
[1762782965902,0.01329,106530.0,106520.0,0.35111615]
[1762782966608,0.01329,106530.0,106520.0,0.38183898]
[1762782966800,0.10500737,106530.0,106520.0,0.38183898]
[1762782967206,0.01329,106530.0,106520.0,0.70823635]
[1762782967707,0.01329,106530.0,106520.0,0.61651898]
[1762782967907,0.01329,106530.0,106520.0,0.70823635]
[1762782968105,0.01329,106530.0,106520.0,0.79261985]
[1762782968310,0.003,106530.0,106520.0,0.56090511]
[1762782968504,0.003,106530.0,106520.0,0.74433985]
[1762782968705,0.003,106530.0,106520.0,0.50965985]
[1762782969210,0.003,106530.0,106520.0,0.74433264]
[1762782969809,0.003,106530.0,106520.0,0.65261527]
[1762782970210,0.003,106530.0,106520.0,0.50965264]
[1762782970509,0.001,106530.0,106520.0,0.50965264]
[1762782970711,0.001,106530.0,106520.0,0.41793527]
[1762782971710,0.09271737,106530.0,106520.0,0.41793527]
[1762782971906,0.09171737,106530.0,106520.0,0.41793527]
[1762782972105,0.09171737,106530.0,106520.0,0.41893527]
[1762782973107,0.08807389,106530.0,106520.0,0.41893527]
[1762782974109,0.08807389,106530.0,106520.0,0.33455898]
[1762782974308,0.08807389,106530.0,106520.0,0.41891329]
[1762782975813,0.09185846,106540.0,106520.0,0.51281569]
[1762782976014,0.09171737,106530.0,106520.0,0.41891329]
[1762782976213,0.09171737,106530.0,106520.0,0.33455898]
[1762782976609,0.00014109,106540.0,106520.0,0.42846138]
[1762782976819,0.09185846,106540.0,106530.0,0.26996417]
[1762782977016,0.09185846,106540.0,106530.0,0.18044483]
[1762782977622,0.18357583,106540.0,106530.0,0.18044483]
[1762782978620,0.18457583,106540.0,106530.0,0.18044483]
[1762782979020,0.18357583,106540.0,106530.0,0.18044483]
[1762782979220,0.18457583,106540.0,106530.0,0.18044483]
[1762782980011,0.00114109,106540.0,106530.0,0.2721622]
[1762782980212,0.09285846,106540.0,106530.0,0.187809]
[1762782980714,0.00114109,106540.0,106530.0,0.2721622]
[1762782980911,0.00114109,106540.0,106530.0,0.5068422]
[1762782981218,0.00114109,106540.0,106530.0,0.5033422]
[1762782981416,0.00114109,106540.0,106530.0,0.418989]
[1762782981607,0.00114109,106540.0,106530.0,0.184309]
[1762782981812,0.00014109,106540.0,106530.0,0.26023998]
[1762782982011,0.00014109,106540.0,106530.0,0.49491998]
[1762782982626,0.00014109,106540.0,106530.0,0.49691998]
[1762782983323,0.00014109,106540.0,106530.0,0.26223998]
[1762782983625,0.00014109,106540.0,106530.0,0.48955581]
[1762782983922,0.00014109,106540.0,106530.0,0.49691998]
[1762782984818,0.00014109,106540.0,106530.0,0.26223998]
[1762782985914,0.09185846,106540.0,106530.0,0.26223998]
[1762782987124,0.09185846,106540.0,106530.0,0.40963998]
[1762782987326,0.09185846,106540.0,106530.0,0.61067035]
[1762782987525,0.09185846,106540.0,106530.0,0.43459978]
[1762782987820,0.09185846,106540.0,106530.0,0.40963998]
[1762782988526,0.08821564,106540.0,106530.0,0.40963998]
[1762782989020,0.0916338,106550.0,106540.0,0.0938848]
[1762782989221,0.0916338,106550.0,106540.0,0.1804381]
[1762782989925,0.09177489,106560.0,106540.0,0.1804381]
[1762782989926,0.09177489,106560.0,106550.0,0.093876]
[1762782990131,0.09177489,106560.0,106550.0,0.16356981]
[1762782990829,0.00014109,106560.0,106550.0,0.16356981]
[1762782991129,0.09177489,106560.0,106550.0,0.16356981]
[1762782991728,0.09277489,106560.0,106550.0,0.16356981]
[1762782993428,0.09277489,106560.0,106550.0,0.06969381]
[1762782995422,0.18440869,106560.0,106550.0,0.06969381]
[1762782996429,0.18440869,106560.0,106550.0,0.16356981]
[1762782996736,0.09497292,106560.0,106550.0,0.16060902]
[1762782997121,0.09497292,106560.0,106550.0,0.06673302]
[1762782997731,0.18660672,106560.0,106550.0,0.06673302]
[1762782998833,0.18660672,106560.0,106550.0,0.16060902]
[1762782999034,0.18660672,106560.0,106550.0,0.06673302]
[1762782999237,0.09497292,106560.0,106550.0,0.09441521]
[1762782999932,0.00333912,106560.0,106550.0,0.09441521]
[1762783000131,0.09497292,106560.0,106550.0,0.09441521]
[1762783003531,0.09133076,106560.0,106550.0,0.09441521]
[1762783005138,0.09133076,106560.0,106550.0,0.17877048]
[1762783005633,0.09177489,106570.0,106560.0,0.0938671]
[1762783005936,0.00014109,106570.0,106560.0,0.18769893]
[1762783006139,0.00014109,106570.0,106560.0,0.2720542]
[1762783006328,0.00014109,106570.0,106560.0,0.1804204]
[1762783006329,0.09177489,106570.0,106560.0,0.1804204]
[1762783006529,0.00014109,106570.0,106560.0,0.1804204]
[1762783006830,0.09277489,106570.0,106560.0,0.1804204]
[1762783007036,0.09477489,106570.0,106560.0,0.1804204]
[1762783010140,0.09477489,106570.0,106560.0,0.19098104]
[1762783010437,0.09697292,106570.0,106560.0,0.18802025]
[1762783010936,0.09697292,106570.0,106560.0,0.09415315]
[1762783011528,0.09697292,106570.0,106560.0,0.16156793]
[1762783011724,0.09697292,106570.0,106560.0,0.07851463]
[1762783014939,0.09697292,106570.0,106560.0,0.17238173]
[1762783015139,0.09697292,106570.0,106560.0,0.10496695]